[Event "USA Championship 2022"]
[Site "Saint Louis"]
[Date "2022.10.09"]
[Round "5.5"]
[White "Shankland, Sam"]
[Black "Moradiabadi, Elshan"]
[Result "1-0"]
[ECO "B28"]
[WhiteElo "2712"]
[BlackElo "2534"]
[Annotator "TA"]
[PlyCount "117"]
[EventDate "2022.09.05"]
[EventType "tourn"]
[EventCountry "USA"]
[SourceTitle "playchess.com"]
[Source "ChessBase"]
[SourceQuality "1"]
[TimeControl "40/5400+30:1800+30"]

{[%evp 9,117,19,16,0,0,0,0,-12,-11,-12,-4,-18,-11,-15,-7,-15,-8,-6,-3,-6,-6,-10,-10,-16,0,-10,0,-50,-15,-12,0,0,0,0,0,0,0,0,0,0,0,0,0,0,0,0,0,0,0,0,0,0,6,2,31,31,31,0,0,0,9,0,0,-10,-14,-46,0,0,8,8,8,8,326,326,326,326,326,326,326,326,326,326,326,326,326,285,278,278,269,269,2120,2147,1610,461,1405,1310,1092,1072,29983,29984,29987,29985,29985,29986,29986,29987,29991,29992,29992,29993]} 1. e4 {[%emt 0:00:07]} c5 {[%emt 0:00:05]} 2. Nf3 {[%emt 0:00:08]} a6 {[%emt 0:00:03]} 3. g3 {[%emt 0:01:52]} Nc6 {[%emt 0:00:49]} 4. Bg2 {[%emt 0:00:26]} g6 {[%emt 0:00:03]} 5. O-O {[%emt 0:00:56]} Bg7 {[%emt 0:00:02]} 6. Re1 {[%emt 0:01:38] B28: Sicilian: 2 Nf3 a6 (O'Kelly Variation).} e5 {[%emt 0:04:56]} 7. Nc3 {[%emt 0:01:28]} Nge7 {[%emt 0:00:20] [#]} 8. a3 $146 {[%emt 0:07:07] The position is equal.} ({Predecessor:} 8. d3 d6 9. Nd2 O-O 10. Nd5 b5 11. a4 Bb7 12. Nf1 Nxd5 13. exd5 Ne7 14. Ne3 {0-1 (44) Boshra,A (1911)-Darban,M (2263) Marmaris 2022}) 8... d6 {[%emt 0:04:25]} 9. Rb1 {[%emt 0:00:51]} O-O {[%emt 0:05:47]} 10. b4 {[%emt 0:00:42]} b5 {[%emt 0:00:13]} 11. d3 {[%emt 0:01:43]} cxb4 {[%emt 0:05:47]} 12. axb4 {[%emt 0:00:05]} Bg4 {[%emt 0:00:02]} 13. Nd5 {[%emt 0:09:35]} Nxd5 {[%emt 0:09:09]} 14. exd5 {[%emt 0:00:08]} Nd4 {[%emt 0:00:02] Strongly threatening ...Qf6.} 15. c3 {[%emt 0:00:31]} Nxf3+ {[%emt 0:00:06]} 16. Bxf3 {[%emt 0:00:04]} Bxf3 {[%emt 0:13:41]} 17. Qxf3 {[%emt 0:00:07]} a5 {[%emt 0:00:04]} 18. Ba3 {[%emt 0:02:24]} (18. bxa5 $11 Qxa5 19. Rb3) 18... axb4 {[%emt 0:02:11]} 19. Bxb4 {[%emt 0:00:05]} f5 {[%emt 0:01:33]} 20. Ra1 {[%emt 0:10:38]} Qd7 {[%emt 0:05:29]} 21. Rxa8 {[%emt 0:05:27]} Rxa8 {[%emt 0:00:04]} 22. Qe3 {[%emt 0:00:11]} Bf8 {[%emt 0:04:56]} 23. f4 {[%emt 0:05:43]} Re8 {[%emt 0:03:08]} 24. Kf2 {[%emt 0:04:38]} e4 {[%emt 0:02:50]} 25. Qd4 {[%emt 0:04:49][%cal Rd3e4]} Bg7 {[%emt 0:09:15]} 26. Qe3 {[%emt 0:03:31]} Qb7 {[%emt 0:00:43]} 27. dxe4 {[%emt 0:00:42]} fxe4 {[%emt 0:01:25]} 28. Rd1 {[%emt 0:01:27][%cal Be1d1,Bd1d2,Bd2e2,Be2e3][%mdl 32]} Qa6 {[%emt 0:02:55]} 29. Kg2 {[%emt 0:03:38]} Qa2+ {[%emt 0:02:04]} 30. Rd2 {[%emt 0:01:18]} Qc4 {[%emt 0:00:02]} 31. Qe2 {[%emt 0:03:13]} Qxe2+ {[%emt 0:07:05]} (31... e3 32. Qxc4 bxc4 33. Re2 $16) (31... Rc8 {with more complications.} 32. Qg4 Kh8 33. Qe6 Rd8) 32. Rxe2 $11 {[%emt 0:00:01][%mdl 4096] Endgame KRB-KRB} Rc8 {[%emt 0:00:05]} 33. Re3 {[%emt 0:01:28]} (33. Bxd6 Rxc3 34. Rxe4 Rd3) 33... Rc4 {[%emt 0:00:08]} 34. Kf1 {[%emt 0:01:48]} Bf6 {[%emt 0:01:38]} 35. g4 {[%emt 0:02:36]} g5 {[%emt 0:02:25]} 36. f5 {[%emt 0:02:22]} (36. Bxd6 Bxc3 37. Be5 (37. fxg5 b4 $17) 37... Bd2 $17) 36... Be5 {[%emt 0:00:31]} 37. Re2 {[%emt 0:02:12]} e3 {[%emt 0:06:14]} (37... Kf7 $15) 38. Rxe3 {[%emt 0:05:03]} Bxh2 {[%emt 0:03:31]} (38... Rxg4 $2 39. Rxe5 $1 {[%mdl 512]} Rxb4 40. cxb4 $18) 39. Kg2 {[%emt 0:00:05]} Bf4 {[%emt 0:00:03]} (39... Be5 $2 40. Rxe5 Rxg4+ 41. Kf3 Rf4+ 42. Ke3 Rxb4 43. cxb4 $18) 40. Re7 {[%emt 0:02:26]} Be5 $2 {[%emt 0:03:53][%mdl 8192] [#] Black cannot hold the game after this.} (40... Kf8 $11 41. f6 (41. Rxh7 Be5 $11) 41... h6) 41. Rxe5 $1 $18 {[%emt 0:34:05][%mdl 512]} Rxg4+ {[%emt 0:30:05] [#]} (41... dxe5 $2 42. d6 Rxg4+ 43. Kf2 $18) 42. Kf3 $1 {[%emt 0:04:58]} Rxb4 {[%emt 0:00:15]} 43. cxb4 {[%emt 0:02:09] Threatening mate with Re6.} dxe5 {[%emt 0:00:03] KP-KP} 44. d6 {[%emt 0:00:06] White wants to mate with d7.} Kf7 {[%emt 0:00:03] Threatens to win with ...h5.} 45. Ke4 {[%emt 0:00:04]} g4 {[%emt 0:00:03]} 46. Kd5 {[%emt 0:00:11] Intending d7 and mate.} (46. Kxe5 g3 47. f6 g2 $19) 46... g3 {[%emt 0:00:26]} 47. d7 {[%emt 0:00:06]} g2 {[%emt 0:00:52]} (47... Ke7 $2 48. Kc6 g2 49. f6+ Ke6 50. d8=Q $18) 48. d8=Q {[%emt 0:00:04]} g1=Q {[%emt 0:00:05] Inhibits Qb6. ( -> ...Qd4+). KQ-KQ} 49. Qc7+ {[%emt 0:04:02]} Kg8 $2 {[%emt 0:04:24] [#]} (49... Ke8 50. Qxe5+ Kf7) 50. Ke6 $1 {[%emt 0:01:36] White threatens Qf7+ and mate.} h6 {[%emt 0:00:51]} 51. Qf7+ {[%emt 0:04:33]} Kh8 {[%emt 0:00:01]} 52. Qe8+ {[%emt 0:00:00]} Kh7 {[%emt 0:00:00]} 53. Qd7+ {[%emt 0:00:00]} Kh8 {[%emt 0:00:00]} 54. f6 {[%emt 0:00:00][%cal Bf5f6,Bf6f7][%mdl 32] White mates.} ({Less strong is} 54. Qxb5 Qg8+ 55. Kxe5 Qg7+ 56. Ke6 Qg8+ 57. Ke7 Qg7+ 58. Ke8 Qg8+ 59. Ke7 Qg5+ 60. Ke6 Qg8+ 61. Ke7 $18) 54... e4 {[%emt 0:00:00]} 55. f7 {[%emt 0:00:00]} Qg4+ {[%emt 0:00:00]} 56. Ke7 {[%emt 0:00:00]} Qg5+ {[%emt 0:00:00]} 57. Ke8 {[%emt 0:00:00]} Qg6 {[%emt 0:00:00]} 58. Qd4+ {[%emt 0:00:00]} Kh7 {[%emt 0:00:00]} 59. Ke7 {[%emt 0:00:00] Weighted Error Value: White=0.11 (very precise) /Black=0.28 (precise)} 1-0

[Event "USA Championship 2022"]
[Site "Saint Louis"]
[Date "2022.10.09"]
[Round "5.6"]
[White "Xiong, Jeffery"]
[Black "Lenderman, Aleksandr"]
[Result "1/2-1/2"]
[ECO "A07"]
[WhiteElo "2690"]
[BlackElo "2535"]
[Annotator "TA"]
[PlyCount "97"]
[EventDate "2022.09.05"]
[EventType "tourn"]
[EventCountry "USA"]
[SourceTitle "playchess.com"]
[Source "ChessBase"]
[SourceQuality "1"]
[TimeControl "40/5400+30:1800+30"]

{[%evp 18,97,31,31,24,22,33,0,0,0,0,0,35,42,43,37,58,58,64,64,98,90,101,93,87,105,84,85,123,129,127,132,121,112,124,115,113,17,34,10,23,16,19,0,0,0,0,0,0,0,0,0,0,0,0,0,0,0,12,-395,0,0,0,0,0,0,0,0,0,0,0,0,0,0,0,0,0,0,0,0,0,0]} 1. Nf3 {[%emt 0:00:28]} d5 {[%emt 0:00:05]} 2. g3 {[%emt 0:00:26]} c6 {[%emt 0:00:17]} 3. Bg2 {[%emt 0:00:22]} Bg4 {[%emt 0:00:07]} 4. O-O {[%emt 0:00:53]} Nd7 {[%emt 0:00:06]} 5. h3 {[%emt 0:01:27]} Bh5 {[%emt 0:00:15]} 6. d3 {[%emt 0:00:18]} Ngf6 {[%emt 0:00:23]} 7. Qe1 {[%emt 0:02:51]} e5 {[%emt 0:01:32]} 8. e4 {[%emt 0:05:59]} dxe4 {[%emt 0:00:35]} 9. dxe4 {[%emt 0:00:03]} Be7 {[%emt 0:01:15]} 10. Nbd2 {[%emt 0:06:25][%cal Bb1d2,Bd2c4,Bc4e3][%mdl 32]} O-O {[%emt 0:03:30] A07: Réti Opening: New York and Capablanca Systems.} 11. Nc4 {[%emt 0:00:27] 11.Nh4 is the hot move.} Qc7 {[%emt 0:00:29]} 12. Bd2 {[%emt 0:00:30]} Rfe8 {[%emt 0:05:05]} 13. a4 {[%emt 0:05:07]} Bf8 {[%emt 0:03:43]} 14. Nh4 {[%emt 0:18:47][%cal Bf3h4,Bh4f5,Bf5d6][%mdl 32] [#]} b5 $5 $146 {[%emt 0:10:38][%mdl 8] New and interesting.} ({Predecessor:} 14... Nc5 15. Ba5 b6 16. Bc3 Nfd7 17. f4 f6 18. fxe5 fxe5 19. Ne3 Ne6 20. Nef5 Rad8 {1-0 (48) Nakamura,H (2793)-Pelletier,Y (2541) Zuerich 2017}) 15. axb5 {[%emt 0:03:57]} cxb5 {[%emt 0:00:14]} 16. Ne3 {[%emt 0:00:03]} Nb6 {[%emt 0:03:14]} 17. b3 {[%emt 0:05:45]} Bc5 {[%emt 0:00:53]} 18. Nhf5 {[%emt 0:00:26]} a6 {[%emt 0:19:46]} 19. Bb4 {[%emt 0:01:23]} Bg6 {[%emt 0:05:30]} 20. Qc3 {[%emt 0:01:37]} Nbd7 {[%emt 0:04:39]} 21. Rfd1 {[%emt 0:01:10]} Qa7 {[%emt 0:04:11]} 22. Bxc5 {[%emt 0:07:34]} Nxc5 {[%emt 0:00:38]} 23. Nd6 {[%emt 0:05:25]} Ncxe4 {[%emt 0:06:32]} 24. Qb4 {[%emt 0:01:05][%cal Rd6e4]} Nxd6 {[%emt 0:03:23]} 25. Rxd6 {[%emt 0:05:18]} ({But not} 25. Bxa8 Qxa8 26. Rxd6 Qf3 $11) 25... Rab8 {[%emt 0:01:15]} 26. Raxa6 {[%emt 0:01:18]} Qe7 {[%emt 0:00:43]} 27. Qh4 {[%emt 0:09:04] White is much more active.} (27. Qa5 $16) 27... Red8 {[%emt 0:03:53]} 28. Rxd8+ {[%emt 0:01:18]} (28. Rxf6 {is interesting.} gxf6 29. Rxf6 Re8 30. Qg5) 28... Qxd8 {[%emt 0:01:10]} 29. Qb4 {[%emt 0:00:59]} h6 {[%emt 0:01:39]} 30. Ra5 {[%emt 0:00:31]} Qd4 {[%emt 0:05:53]} 31. c4 {[%emt 0:00:08]} Ne4 {[%emt 0:01:33][%cal Oe4g3]} 32. Rxb5 {[%emt 0:01:03]} Rxb5 {[%emt 0:00:50]} 33. Qxb5 {[%emt 0:00:02]} Nxf2 {[%emt 0:01:16][%mdl 64] [#] Decoy} 34. Kxf2 {[%emt 0:02:53]} Qd2+ {[%emt 0:00:03]} 35. Kg1 {[%emt 0:00:33]} ({Wrong is} 35. Kf3 $2 e4+ 36. Kf4 Qf2+ 37. Kg4 Qxe3 $19) 35... Qxe3+ $11 {[%emt 0:00:05][%mdl 4096] Endgame KQB-KQB} 36. Kh2 {[%emt 0:00:02]} e4 {[%emt 0:06:14] ...Qd2 is the strong threat.} 37. c5 {[%emt 0:01:16]} Qf2 {[%emt 0:01:05] [#] And now ...e3 would win.} 38. Qb8+ {[%emt 0:03:14]} Kh7 {[%emt 0:01:22]} 39. Qf4 {[%emt 0:00:03] The position is equal.} Qxc5 {[%emt 0:01:49] Hoping for ...e3.} 40. Bxe4 {[%emt 0:00:12]} Bxe4 {[%emt 0:00:30]} 41. Qxe4+ {[%emt 0:30:04] KQ-KQ} f5 {[%emt 0:31:03]} 42. b4 $1 {[%emt 0:02:55]} Qb5 {[%emt 0:01:09]} (42... fxe4 $2 43. bxc5 Kg6 44. c6 $18) 43. Qc2 {[%emt 0:00:26]} Qxb4 {[%emt 0:00:12]} 44. Qxf5+ {[%emt 0:00:06]} Kh8 {[%emt 0:00:07]} 45. Qc8+ {[%emt 0:00:04]} Kh7 {[%emt 0:00:04]} 46. Qf5+ {[%emt 0:00:05]} Kh8 {[%emt 0:00:03]} 47. Qc8+ {[%emt 0:00:03]} Kh7 {[%emt 0:00:04]} 48. Qf5+ {[%emt 0:00:07]} Kh8 {[%emt 0:00:02]} 49. Qc8+ {[%emt 0:00:07] Weighted Error Value: White=0.19 (very precise) /Black=0.04 (flawless)} 1/2-1/2

[Event "USA Championship 2022"]
[Site "Saint Louis"]
[Date "2022.10.09"]
[Round "5.7"]
[White "Caruana, Fabiano"]
[Black "So, Wesley"]
[Result "1/2-1/2"]
[ECO "C67"]
[WhiteElo "2763"]
[BlackElo "2774"]
[Annotator "TA"]
[PlyCount "149"]
[EventDate "2022.09.05"]
[EventType "tourn"]
[EventCountry "USA"]
[SourceTitle "playchess.com"]
[Source "ChessBase"]
[SourceQuality "1"]
[TimeControl "40/5400+30:1800+30"]

{[%evp 15,149,14,13,14,9,12,13,11,18,10,18,11,18,15,14,18,20,24,10,16,15,16,16,20,18,6,19,19,15,15,15,10,15,13,13,11,13,12,16,11,11,12,12,15,16,13,14,14,20,10,14,17,13,16,8,31,64,64,84,84,82,56,56,56,56,59,41,41,41,41,41,41,41,41,41,41,41,41,41,41,41,41,41,0,41,38,38,0,0,0,0,0,0,0,0,0,0,0,5,0,0,0,0,0,0,0,0,0,64,0,0,0,0,0,0,0,0,0,0,0,0,0,0,0,0,0,0,0,0,0,0,0,0,0,0,0]} 1. e4 {[%emt 0:00:05]} e5 {[%emt 0:00:37]} 2. Nf3 {[%emt 0:00:06]} Nc6 {[%emt 0:00:11]} 3. Bb5 {[%emt 0:00:08]} Nf6 {[%emt 0:00:31]} 4. O-O {[%emt 0:00:17][%cal Bh1f1,Bf1e1,Be1e5][%mdl 32]} Nxe4 {[%emt 0:00:52]} 5. Re1 {[%emt 0:00:06]} Nd6 {[%emt 0:00:06]} 6. Nxe5 {[%emt 0:00:03]} Be7 {[%emt 0:00:05]} 7. Bf1 {[%emt 0:00:07]} Nxe5 {[%emt 0:00:17]} 8. Rxe5 {[%emt 0:00:05]} O-O {[%emt 0:00:06]} 9. Nc3 {[%emt 0:00:12][%cal Bb1c3,Bc3d5,Bd5e3,Be3f5][%mdl 32] C67: Ruy Lopez: Berlin Defence: 4 0-0 Nxe4.} Ne8 {[%emt 0:00:31]} (9... Bf6 10. Re1 Re8 11. Nd5 Rxe1 12. Nxf6+ Qxf6 13. Qxe1 b6 14. d3 Bb7 15. Qb4 c5 16. Qf4 Qxf4 17. Bxf4 Nf5 18. Re1 f6 19. c3 g5 20. Bd2 Bd5 21. a3 h5 22. f3 Kf7 23. Kf2 a5 24. Be2 {½-½ (41) Caruana,F (2792)-So,W (2772) Chess.com INT 2022}) 10. Nd5 {[%emt 0:00:30]} Bd6 {[%emt 0:00:09]} 11. Re1 {[%emt 0:00:09]} c6 {[%emt 0:00:04]} (11... Qh4 12. g3 Qd8 13. d4 $16) 12. Ne3 {[%emt 0:00:04]} Be7 {[%emt 0:00:05]} ({But not} 12... Qh4 13. g3 Qf6 14. d4 $14) 13. Nf5 {[%emt 0:03:19]} Bg5 {[%emt 0:02:27]} 14. d3 {[%emt 0:00:25]} Bxc1 {[%emt 0:09:24]} (14... g6 {seems wilder.} 15. Qg4 Bxc1 16. Ne7+ Kg7) 15. Qxc1 {[%emt 0:07:57]} d5 {[%emt 0:03:56]} 16. Ne7+ {[%emt 0:00:04]} Kh8 {[%emt 0:00:04] [#] aiming for ...Be6.} 17. Nxc8 {[%emt 0:00:04]} Rxc8 {[%emt 0:00:25] [#]} 18. g3 $146 {[%emt 0:00:10]} ({Predecessor:} 18. Qe3 Qb6 19. c4 Qxb2 20. Qxa7 dxc4 21. Rab1 Qf6 22. dxc4 Nd6 23. c5 Ra8 24. Qb6 {½-½ (33) Lie,K (2521)-Holm,K (2467) Norway 2020}) 18... Nf6 {[%emt 0:04:22]} 19. c4 {[%emt 0:01:31]} c5 {[%emt 0:05:39]} 20. Qf4 {[%emt 0:07:13]} b6 {[%emt 0:08:40]} 21. Rad1 {[%emt 0:13:59]} Qc7 {[%emt 0:10:36]} 22. Qxc7 {[%emt 0:08:24]} Rxc7 {[%emt 0:00:00]} 23. d4 {[%emt 0:00:04]} cxd4 {[%emt 0:00:00]} 24. cxd5 {[%emt 0:00:48]} Nxd5 {[%emt 0:00:00]} 25. Rxd4 {[%emt 0:00:06]} Nf6 {[%emt 0:00:00]} 26. Rd6 {[%emt 0:04:12]} Kg8 {[%emt 0:01:07]} 27. b3 {[%emt 0:07:11]} Rfc8 {[%emt 0:09:43]} 28. Ba6 {[%emt 0:01:53]} Rc1 {[%emt 0:00:50]} 29. Rdd1 {[%emt 0:07:19]} Rxd1 {[%emt 0:01:02]} 30. Rxd1 $11 {[%emt 0:00:04][%mdl 4096] Endgame KRB-KRN} Re8 {[%emt 0:02:35]} 31. Rc1 {[%emt 0:02:10] Threatening Rc7.} Kf8 $1 {[%emt 0:03:07]} 32. Kg2 {[%emt 0:03:49]} g5 {[%emt 0:11:46]} 33. Rc7 {[%emt 0:16:22]} Re7 {[%emt 0:00:00]} 34. Rxe7 {[%emt 0:00:07]} Kxe7 {[%emt 0:00:00] KB-KN} 35. Kf3 {[%emt 0:01:31]} Kd6 {[%emt 0:00:00]} 36. Bc4 {[%emt 0:00:57]} a5 {[%emt 0:02:21]} 37. Bxf7 {[%emt 0:01:19]} Ke5 {[%emt 0:08:21]} 38. a4 {[%emt 0:09:26]} Kd4 {[%emt 0:00:00]} 39. Bc4 {[%emt 0:03:13]} h6 {[%emt 0:00:00]} 40. h4 {[%emt 0:00:53]} Ke5 $1 {[%emt 0:00:00]} 41. hxg5 {[%emt 0:33:53]} hxg5 {[%emt 0:20:59]} 42. Ke3 {[%emt 0:00:00] [#] Black must now prevent Kd3.} Ng4+ $1 {[%emt 0:00:00]} 43. Ke2 {[%emt 0:00:00]} Kd4 $1 {[%emt 0:00:00]} 44. Bb5 {[%emt 0:00:00]} Nf6 {[%emt 0:00:00]} 45. Kf3 {[%emt 0:00:00]} Ke5 {[%emt 0:00:00]} 46. Ke3 {[%emt 0:00:00]} Ng4+ $1 {[%emt 0:00:00]} 47. Ke2 {[%emt 0:00:00]} Kd4 $1 {[%emt 0:00:00]} 48. Bc6 {[%emt 0:00:00]} Ne5 {[%emt 0:00:00]} 49. Bb5 {[%emt 0:00:00]} (49. Be8 $5 {[%cal Rf2f4]}) 49... Ng4 {[%emt 0:00:00]} 50. f3 {[%emt 0:00:00]} Ne3 {[%emt 0:00:00]} 51. Bd3 {[%emt 0:00:00]} (51. Kf2 $5 {[%cal Rf3f4]}) 51... Nd5 {[%emt 0:00:00]} 52. Kd2 {[%emt 0:00:00]} Nf6 {[%emt 0:00:00]} 53. Bg6 {[%emt 0:00:00]} Nd5 {[%emt 0:00:00]} 54. Bf7 {[%emt 0:00:00] Bxd5 is the strong threat.} Nf6 {[%emt 0:00:28]} 55. Ke2 {[%emt 0:00:00]} Nd7 {[%emt 0:00:17]} 56. Bg8 {[%emt 0:00:00]} Nc5 {[%emt 0:02:17]} 57. Kd2 {[%emt 0:01:17]} Nd7 {[%emt 0:00:06]} 58. Bh7 {[%emt 0:02:06]} Nf6 {[%emt 0:04:05]} 59. Bg6 {[%emt 0:00:03]} Nd5 {[%emt 0:00:21]} 60. Ke2 {[%emt 0:00:58]} Nc3+ {[%emt 0:01:23]} 61. Kf2 {[%emt 0:00:19]} Nd1+ {[%emt 0:01:04]} ({Black should play} 61... b5 $11) 62. Ke1 {[%emt 0:00:22]} ({White should try} 62. Kg2 $1 $14) 62... Nc3 {[%emt 0:01:09] The position is equal.} 63. f4 {[%emt 0:00:27]} gxf4 {[%emt 0:06:51]} 64. gxf4 {[%emt 0:00:05]} b5 {[%emt 0:02:07]} 65. axb5 {[%emt 0:00:44]} Nxb5 {[%emt 0:00:02]} 66. Kf2 {[%emt 0:04:24]} Nc3 {[%emt 0:01:05]} 67. Kf3 {[%emt 0:02:21]} a4 {[%emt 0:00:27]} 68. bxa4 {[%emt 0:00:07]} Nxa4 {[%emt 0:00:03]} 69. Kg4 {[%emt 0:00:23]} Nc3 {[%emt 0:01:05]} 70. Bf7 {[%emt 0:00:09]} Ne2 {[%emt 0:00:14]} 71. f5 {[%emt 0:00:04]} Ke5 {[%emt 0:00:03]} 72. Bc4 {[%emt 0:00:21]} Ng3 {[%emt 0:00:05]} 73. Kg5 {[%emt 0:00:12]} Nxf5 {[%emt 0:00:07]} 74. Bd5 {[%emt 0:00:02]} Kxd5 {[%emt 0:00:05]} 75. Kxf5 {[%emt 0:00:01] Weighted Error Value: White=0.03 (flawless) /Black=0.02 (flawless)} 1/2-1/2

[Event "USA Championship 2022"]
[Site "Saint Louis"]
[Date "2022.10.11"]
[Round "6.1"]
[White "So, Wesley"]
[Black "Dominguez Perez, Leinier"]
[Result "1/2-1/2"]
[ECO "A36"]
[WhiteElo "2774"]
[BlackElo "2747"]
[Annotator "TA"]
[PlyCount "80"]
[EventDate "2022.09.05"]
[EventType "tourn"]
[EventCountry "USA"]
[SourceTitle "playchess.com"]
[Source "ChessBase"]
[SourceQuality "1"]
[TimeControl "40/5400+30:1800+30"]

{[%evp 9,80,0,4,0,0,-1,12,6,0,0,0,0,5,-13,-12,-2,-6,-7,4,-2,-6,0,0,-19,-9,-8,18,18,24,22,22,0,0,0,0,0,0,0,0,0,0,0,0,0,0,0,0,0,0,0,0,0,0,0,0,0,0,0,0,0,0,0,0,0,0,0,0,0,0,0,0,0,0]} 1. c4 {[%emt 0:00:01]} c5 {[%emt 0:04:06]} 2. g3 {[%emt 0:00:18]} g6 {[%emt 0:00:14]} 3. Bg2 {[%emt 0:00:19]} Bg7 {[%emt 0:00:07]} 4. Nc3 {[%emt 0:00:40]} Nc6 {[%emt 0:00:08]} 5. a3 {[%emt 0:00:14]} (5. Nf3 d6 6. O-O Bg4 7. h3 Bxf3 8. Bxf3 e6 9. d3 Nge7 10. Bd2 O-O 11. a3 d5 12. cxd5 exd5 13. Rb1 Qd7 14. Bg2 Rad8 15. b4 {1-0 (54) So,W (2772)-Dominguez Perez,L (2758) chess24.com INT 2021}) 5... b6 {[%emt 0:01:46]} 6. Nf3 {[%emt 0:01:08] A36: Symmetrical English vs ...g6: 4 Bg2 Bg7.} Bb7 {[%emt 0:00:28]} 7. O-O {[%emt 0:02:39]} Nd4 {[%emt 0:01:41]} 8. e4 {[%emt 0:03:01] [#]} Nxf3+ $146 {[%emt 0:07:31]} ({Predecessor:} 8... e5 9. d3 Ne7 10. Nxd4 cxd4 11. Nd5 Nxd5 12. exd5 O-O 13. f4 d6 14. Bd2 a5 {0-1 (32) Mort,A (2017)-Brett,A (2087) England 2012}) 9. Bxf3 {[%emt 0:02:18]} d6 {[%emt 0:00:44]} 10. d3 {[%emt 0:06:40]} e6 {[%emt 0:22:22]} 11. Be3 {[%emt 0:11:22]} Ne7 {[%emt 0:00:34][%cal Bg8e7,Be7c6,Bc6d4][%mdl 32]} 12. Bg2 {[%emt 0:09:30]} Nc6 {[%emt 0:00:37]} 13. Qd2 {[%emt 0:03:07]} Nd4 {[%emt 0:01:33]} 14. Rab1 {[%emt 0:01:47]} O-O {[%emt 0:05:57]} 15. b4 {[%emt 0:00:48]} Qd7 {[%emt 0:00:38]} 16. Ne2 {[%emt 0:08:19]} Nxe2+ {[%emt 0:13:01]} 17. Qxe2 {[%emt 0:00:06]} cxb4 {[%emt 0:01:37]} 18. axb4 {[%emt 0:04:16]} d5 {[%emt 0:00:06]} 19. exd5 {[%emt 0:08:51]} exd5 {[%emt 0:00:05] The position is equal.} 20. c5 {[%emt 0:01:50]} d4 {[%emt 0:01:22] [#] Hoping for ...Rae8.} 21. Bxb7 {[%emt 0:00:48]} Qxb7 {[%emt 0:00:08]} 22. Bf4 {[%emt 0:00:20]} Rfe8 {[%emt 0:01:15]} 23. Qc2 {[%emt 0:02:45] Black must now prevent c6.} Rac8 {[%emt 0:02:35]} 24. Bd6 {[%emt 0:07:42]} Be5 {[%emt 0:10:51]} 25. Bxe5 {[%emt 0:01:23]} Rxe5 {[%emt 0:00:26]} 26. Rfe1 {[%emt 0:00:49]} Rxe1+ {[%emt 0:01:21]} 27. Rxe1 {[%emt 0:00:05]} bxc5 {[%emt 0:01:33]} 28. bxc5 $11 {[%emt 0:01:13][%mdl 4096] Endgame KQR-KQR} Qd5 {[%emt 0:00:19]} 29. Rc1 {[%emt 0:00:31]} Rc6 {[%emt 0:00:07]} 30. Qc4 {[%emt 0:00:58]} Qxc4 {[%emt 0:00:27]} 31. Rxc4 {[%emt 0:00:04] KR-KR} Kg7 {[%emt 0:00:08]} 32. Kg2 {[%emt 0:01:03]} Kf6 {[%emt 0:01:06]} 33. Rxd4 {[%emt 0:00:06]} Rxc5 {[%emt 0:00:06]} 34. Rd6+ {[%emt 0:00:04]} Kg7 {[%emt 0:01:23]} 35. Ra6 {[%emt 0:01:45]} Rd5 {[%emt 0:00:10]} 36. Rxa7 {[%emt 0:00:03]} Rxd3 {[%emt 0:00:07]} 37. Rb7 {[%emt 0:00:03]} Rc3 {[%emt 0:00:04]} 38. Ra7 {[%emt 0:00:03]} Rd3 {[%emt 0:00:06]} 39. Rb7 {[%emt 0:00:02]} Rc3 {[%emt 0:00:09]} 40. Ra7 {[%emt 0:00:02]} Rd3 {[%emt 0:00:29] A balanced but interesting game.  Weighted Error Value: White=0.03 (flawless) /Black=0.02 (flawless)} 1/2-1/2